bitfinex-derivatives/quotes_SOLF0:USTF0_20260316
["timestamp","ask_amount","ask_price","bid_price","bid_amount"]
[1773692304483,3.85787502,95.55,95.49,3.85787502]
[1773692304682,3.73149603,95.549,95.49,3.85787502]
[1773692306481,3.74206848,95.564,95.52,3.85787502]
[1773692306685,3.74206848,95.564,95.53,3.85787502]
[1773692307983,3.74206848,95.564,95.52,3.85787502]
[1773692308888,3.74206848,95.564,95.51,3.85787502]
[1773692309085,3.74206848,95.564,95.491,0.26786078]
[1773692309086,3.74206848,95.564,95.5,3.85787502]
[1773692309290,3.74206848,95.564,95.51,3.85787502]
[1773692319300,3.85787502,95.58,95.511,0.23913228]
[1773692319493,3.75197886,95.579,95.511,0.23913228]
[1773692320396,3.70224918,95.569,95.511,0.23913228]
[1773692322493,3.70224918,95.569,95.5,3.85787502]
[1773692324508,3.70224918,95.569,95.501,0.35585123]
[1773692324800,3.70224918,95.569,95.51,3.85787502]
[1773692327307,3.70224918,95.569,95.501,0.35585123]
[1773692330211,3.70224918,95.569,95.51,3.85787502]
[1773692330901,3.71020018,95.559,95.501,0.35585123]
[1773692334206,3.73981748,95.539,95.483,0.25923643]
[1773692334515,7.61941636,95.56,95.491,0.2157887]
[1773692334702,3.76154134,95.559,95.491,0.2157887]
[1773692337212,3.76615912,95.549,95.491,0.2157887]
[1773692341723,3.74762125,95.539,95.491,0.2157887]
[1773692343218,3.73687538,95.529,95.471,0.26583153]
[1773692343415,18.834,95.566,95.471,0.26583153]
[1773692343416,3.75118802,95.519,95.471,0.26583153]
[1773692345328,3.74876129,95.559,95.481,0.2420597]
[1773692345525,3.74876129,95.549,95.491,0.2420597]
[1773692349033,3.74478699,95.539,95.491,0.2420597]
[1773692350330,3.74480731,95.529,95.478,0.24996768]
[1773692352031,3.76092877,95.509,95.451,0.21772475]
[1773692352225,3.76092877,95.499,95.451,0.21772475]
[1773692355637,3.76092877,95.499,95.423,12.85231709]
[1773692355638,3.73880423,95.489,95.431,0.26197383]
[1773692356235,3.73880423,95.479,95.419,32.98]
[1773692356532,3.71917057,95.469,95.418,0.30124116]
[1773692359437,3.71917057,95.469,95.394,0.21002836]
[1773692359744,3.71917057,95.469,95.401,0.21002836]
[1773692361033,3.76654202,95.449,95.401,0.21002836]
[1773692361235,3.76654202,95.449,95.387,0.20649825]
[1773692361434,3.85693498,95.45,95.387,0.20649825]
[1773692361435,3.77342447,95.439,95.387,0.20649825]
[1773692361735,7.63035945,95.43,95.387,0.20649825]
[1773692362038,3.77342447,95.429,95.371,0.19273334]
[1773692362347,3.77342447,95.419,95.371,0.19273334]
[1773692363344,3.78231345,95.409,95.356,0.18000853]
[1773692364145,3.78231345,95.409,95.361,0.18000853]
[1773692364646,3.78199927,95.396,95.331,0.18063688]
[1773692365443,3.78199927,95.396,95.345,2.097]
[1773692366245,7.75921851,95.41,95.358,2.097]
[1773692366558,3.94715646,95.409,95.358,2.097]
[1773692366848,3.94715646,95.399,95.347,2.097]
[1773692368639,3.94715646,95.399,95.356,2.097]
[1773692370043,3.94715646,95.399,95.365,2.097]
[1773692370241,3.94715646,95.399,95.35,3.85693498]
[1773692370452,3.94715646,95.399,95.34,3.85693498]
[1773692371653,3.94715646,95.399,95.355,2.097]
[1773692373753,3.94715646,95.399,95.365,2.097]
[1773692375953,3.85693498,95.42,95.373,2.096]
[1773692375954,3.97046402,95.419,95.373,2.096]
[1773692376557,3.97046402,95.419,95.381,2.096]
[1773692377259,3.97046402,95.419,95.372,2.096]
[1773692377660,3.97046402,95.419,95.36,3.85693498]
[1773692377859,3.97046402,95.419,95.37,3.85693498]
[1773692378356,18.848,95.495,95.309,244.60261864]
[1773692378357,3.97237205,95.433,95.39,3.85693498]
[1773692378564,3.97237205,95.449,95.41,3.85693498]
[1773692378761,3.97237205,95.469,95.41,3.85693498]
[1773692379356,3.97237205,95.469,95.426,2.095]
[1773692379553,3.97237205,95.469,95.42,3.85693498]
[1773692379954,3.97237205,95.469,95.41,3.85693498]
[1773692380657,3.97237205,95.469,95.37,31.43]
[1773692380658,3.96954675,95.459,95.39,3.85693498]
[1773692381866,3.96954675,95.459,95.4,3.85693498]
[1773692382958,3.96954675,95.459,95.39,3.85693498]
[1773692383158,4.0062918,95.449,95.39,3.85693498]
[1773692384270,4.0062918,95.449,95.397,2.096]
[1773692384763,3.9907706,95.439,95.397,2.096]
[1773692387270,3.9907706,95.439,95.367,33.02]
[1773692387271,3.9907706,95.439,95.388,2.096]
[1773692391569,3.85693498,95.43,95.36,3.85693498]
[1773692391765,4.00875337,95.419,95.36,3.85693498]
[1773692391970,4.00875337,95.419,95.37,3.85693498]
[1773692392370,4.00875337,95.419,95.385,2.096]
[1773692395674,4.02484984,95.399,95.314,31.43]
[1773692395972,4.02484984,95.399,95.34,3.86642719]
[1773692396571,4.02484984,95.399,95.355,2.097]
[1773692400474,4.02484984,95.399,95.36,3.86642719]
[1773692401673,4.02484984,95.399,95.372,2.096]
[1773692402380,4.04758199,95.419,95.379,2.096]
[1773692403173,4.04758199,95.419,95.369,2.096]
[1773692403684,4.04758199,95.419,95.36,3.86642719]
[1773692404583,4.04758199,95.419,95.367,2.097]
[1773692405078,4.04758199,95.419,95.374,2.096]
[1773692409089,4.04758199,95.419,95.36,3.86642719]
[1773692409090,4.04758199,95.419,95.38,2.096]
[1773692409888,4.04758199,95.419,95.387,2.096]
[1773692410088,4.04758199,95.419,95.37,3.86642719]
[1773692411085,4.02081392,95.439,95.38,3.86642719]
[1773692412689,4.02081392,95.439,95.401,2.096]
[1773692415095,4.02081392,95.439,95.357,12.85231709]
[1773692415394,4.02676981,95.453,95.41,3.86642719]
[1773692415595,4.02676981,95.453,95.4,3.86642719]
[1773692415796,4.02676981,95.453,95.424,2.095]
[1773692416390,4.02676981,95.453,95.415,2.095]
[1773692421500,4.01035352,95.449,95.39,3.86642719]
[1773692422503,4.01035352,95.449,95.399,2.096]
[1773692426106,4.01035352,95.449,95.406,2.096]
[1773692429008,4.01035352,95.449,95.4,3.86642719]
[1773692429608,4.01035352,95.449,95.411,2.096]
[1773692430606,4.01035352,95.449,95.402,2.096]
[1773692437508,4.01035352,95.449,95.4,3.86642719]
[1773692438512,4.01035352,95.449,95.416,2.095]
[1773692438713,4.0131399,95.461,95.41,3.86642719]
[1773692439513,4.0131399,95.461,95.422,2.095]
[1773692439812,33.0,95.501,95.42,3.86642719]
[1773692439813,4.00881737,95.479,95.42,3.86642719]
[1773692440716,4.00881737,95.479,95.436,2.095]
[1773692442814,3.95414752,95.492,95.442,2.095]
[1773692444112,3.94785979,95.489,95.442,2.095]
[1773692444318,3.94785979,95.489,95.449,2.095]
[1773692445314,3.94785979,95.489,95.441,2.095]
[1773692458527,3.91167329,95.479,95.42,3.86175816]
[1773692459621,3.91167329,95.479,95.426,2.095]
[1773692461728,3.91167329,95.479,95.432,2.095]
[1773692462228,3.91167329,95.479,95.418,0.03429361]
[1773692462730,3.91167329,95.479,95.43,2.095]
[1773692462926,3.91167329,95.479,95.418,0.03429361]
[1773692463528,3.85482595,95.459,95.403,0.03868768]
[1773692463732,3.85482595,95.449,95.403,0.03868768]
[1773692464132,3.85482595,95.449,95.411,2.096]
[1773692464436,33.0,95.484,95.403,0.03868768]
[1773692464437,3.86175816,95.46,95.403,0.03868768]
[1773692464733,3.85365834,95.459,95.403,0.03868768]
[1773692465527,3.85365834,95.459,95.417,2.095]
[1773692465831,3.85365834,95.459,95.403,0.03868768]
[1773692466632,3.85365834,95.459,95.41,2.096]
[1773692467925,3.85659478,95.449,95.403,2.13468768]
[1773692468832,3.85659478,95.449,95.408,2.096]
[1773692479238,3.85659478,95.449,95.414,2.096]
[1773692480341,3.85659478,95.449,95.4,3.86175816]
[1773692481445,3.85659478,95.449,95.378,18.871]
[1773692481446,3.85659478,95.449,95.407,2.096]
[1773692489153,3.8720765,95.429,95.378,12.93618428]
[1773692489354,3.8720765,95.429,95.37,16.79794244]
[1773692490150,3.8720765,95.429,95.37,3.86175816]
[1773692490356,3.8720765,95.429,95.37,16.79794244]
[1773692490547,3.8720765,95.429,95.391,2.096]
[1773692492259,3.8720765,95.429,95.383,2.096]
[1773692496262,3.8720765,95.429,95.34,18.878]
[1773692496263,3.87837041,95.449,95.38,3.86175816]
[1773692496861,3.8729577,95.439,95.391,2.096]
[1773692498857,3.8729577,95.439,95.358,18.875]
[1773692498858,3.88013131,95.481,95.4,3.86175816]
[1773692499063,3.88013131,95.459,95.4,3.86175816]
[1773692499761,3.88013131,95.459,95.405,2.096]
[1773692504464,3.88013131,95.459,95.39,3.86175816]
[1773692504465,3.88013131,95.459,95.412,2.096]
[1773692506062,3.88013131,95.459,95.39,3.86175816]
[1773692506063,3.88013131,95.459,95.419,2.095]
[1773692506767,3.88013131,95.459,95.412,2.096]
[1773692509670,3.88013131,95.459,95.422,2.095]
[1773692509964,3.88013131,95.459,95.41,3.86175816]
[1773692510561,3.88013131,95.459,95.42,3.86175816]
[1773692511667,3.88013131,95.459,95.429,2.095]
[1773692513569,3.95895896,95.489,95.432,2.095]
[1773692515571,3.95895896,95.489,95.45,3.86175816]
[1773692516574,3.95895896,95.489,95.448,2.095]
[1773692517970,3.86099285,95.52,95.45,3.86099285]
[1773692518176,3.96894719,95.529,95.46,3.86099285]
[1773692518471,3.96952152,95.509,95.46,3.86099285]
[1773692518769,3.96952152,95.509,95.423,33.0]
[1773692518770,3.96952152,95.509,95.47,3.86099285]
[1773692519069,3.96952152,95.552,95.501,2.094]
[1773692519275,3.96952152,95.552,95.51,3.86099285]
[1773692519570,3.96952152,95.552,95.501,2.094]
[1773692519873,3.96952152,95.552,95.509,2.093]
[1773692520371,3.96952152,95.552,95.5,2.094]
[1773692521574,3.96952152,95.552,95.5,5.95499285]
[1773692522072,3.96952152,95.552,95.462,18.854]
[1773692522073,3.86099285,95.58,95.518,2.093]
[1773692522277,4.04653209,95.594,95.54,3.86099285]
[1773692522770,4.04653209,95.594,95.55,3.86099285]
[1773692522971,4.04660611,95.612,95.57,3.86099285]
[1773692525477,4.04660611,95.612,95.552,2.092]
[1773692527381,4.04660611,95.612,95.561,2.092]
[1773692528778,4.04660611,95.612,95.57,3.86099285]
[1773692528982,4.04660611,95.612,95.488,31.43]
[1773692529175,3.86099285,95.61,95.54,3.86099285]
[1773692529372,4.11371935,95.599,95.56,3.86099285]
[1773692530573,4.11371935,95.599,95.55,3.86099285]
[1773692535090,4.11371935,95.599,95.54,3.86099285]
[1773692535286,4.11371935,95.599,95.53,3.86099285]
[1773692535687,4.11371935,95.599,95.493,18.848]
[1773692535886,4.19984417,95.589,95.53,3.86099285]
[1773692541189,4.19022963,95.579,95.52,3.86099285]
[1773692542188,4.19022963,95.579,95.53,3.86099285]
[1773692542385,4.19022963,95.579,95.52,3.86099285]
[1773692543693,4.19022963,95.579,95.523,2.093]
[1773692544689,4.19022963,95.579,95.52,3.86099285]
[1773692544894,4.19022963,95.579,95.515,2.093]
[1773692545395,4.19022963,95.579,95.52,3.86099285]
[1773692545788,4.19022963,95.579,95.53,3.86099285]
[1773692545989,4.19022963,95.579,95.52,3.86099285]
[1773692548498,18.825,95.61,95.51,3.86099285]
[1773692548499,3.86099285,95.57,95.51,3.86099285]
[1773692548699,4.20079984,95.569,95.51,3.86099285]
[1773692548897,4.20079984,95.559,95.5,3.86099285]
[1773692550098,4.20079984,95.559,95.51,3.86099285]
[1773692551001,4.20079984,95.559,95.502,2.094]
[1773692551604,4.20079984,95.559,95.5,3.86099285]
[1773692553497,3.86099285,95.56,95.459,18.855]
[1773692553498,4.17177928,95.549,95.49,3.86099285]
[1773692553703,4.17177928,95.539,95.48,3.86099285]
[1773692553902,4.17177928,95.539,95.419,19.40427642]
[1773692553903,4.17177928,95.519,95.45,3.86099285]
[1773692554302,4.17177928,95.519,95.461,2.094]
[1773692555505,4.17177928,95.519,95.45,3.86099285]
[1773692555708,4.17177928,95.519,95.46,3.86099285]
[1773692559112,4.17177928,95.519,95.418,18.863]
[1773692559313,4.17177928,95.519,95.46,3.86099285]
[1773692561915,4.17213071,95.509,95.45,3.86099285]
[1773692563507,4.17213071,95.509,95.46,3.86099285]
[1773692563912,4.17213071,95.509,95.45,3.86099285]
[1773692564911,4.17213071,95.509,95.423,12.82741354]
[1773692565111,4.17213071,95.509,95.45,3.86099285]
[1773692568211,4.17213071,95.509,95.46,3.86099285]
[1773692568612,3.86099285,95.52,95.46,3.86099285]
[1773692569306,4.15858849,95.522,95.47,3.86099285]
[1773692572617,4.15858849,95.522,95.46,3.86099285]
[1773692576820,4.15858849,95.522,95.46,3.85898689]
[1773692577218,4.16530023,95.519,95.45,3.85898689]
[1773692577428,4.16530023,95.519,95.47,3.85898689]
[1773692578226,4.16082158,95.539,95.47,3.85898689]
[1773692578626,4.16082158,95.539,95.48,3.85898689]
[1773692582130,4.16082158,95.539,95.49,3.85898689]
[1773692584428,4.16082158,95.539,95.48,3.85898689]
[1773692584629,4.16082158,95.539,95.49,3.85898689]
[1773692587323,4.16082158,95.539,95.48,3.85898689]
[1773692587922,4.16082158,95.539,95.438,31.43]
[1773692587923,4.15913704,95.519,95.46,3.85898689]
[1773692588123,4.15913704,95.519,95.45,3.85898689]
[1773692589029,4.15913704,95.519,95.46,3.85898689]
[1773692589728,4.15913704,95.519,95.47,3.85898689]
[1773692590431,4.15913704,95.519,95.46,3.85898689]
[1773692593324,10.47,95.584,95.437,32.98]
[1773692593325,4.14974619,95.531,95.49,3.85898689]
[1773692593531,4.14974619,95.531,95.48,3.85898689]
[1773692598034,18.832,95.574,95.442,18.858]
[1773692598035,4.0078141,95.529,95.467,12.82741354]
[1773692598231,4.0078141,95.529,95.463,12.82741354]
[1773692598626,4.0078141,95.529,95.48,3.85898689]
[1773692612642,4.0078141,95.529,95.47,3.85898689]
[1773692613342,4.0078141,95.529,95.453,10.97453968]
[1773692613541,18.837,95.551,95.44,3.85898689]
[1773692613542,3.95318544,95.499,95.44,3.85898689]
[1773692615241,3.95318544,95.499,95.412,19.40427642]
[1773692615242,3.9573684,95.469,95.41,3.85898689]
[1773692616050,3.9573684,95.469,95.42,3.85898689]
[1773692616348,3.9573684,95.469,95.43,3.85898689]
[1773692616542,3.95764101,95.482,95.43,3.85898689]
[1773692616944,3.95764101,95.482,95.44,3.85898689]
[1773692618641,3.95764101,95.482,95.405,18.865]
[1773692618842,3.95764101,95.482,95.43,3.85898689]
[1773692620449,3.96266496,95.479,95.42,3.85898689]
[1773692621246,3.96266496,95.479,95.41,3.85898689]
[1773692622650,3.93783484,95.469,95.4,3.85898689]
[1773692623552,3.93777389,95.459,95.4,3.85898689]
[1773692625650,3.93777389,95.459,95.385,32.98]
[1773692625852,3.93777389,95.459,95.39,3.85898689]
[1773692626749,3.93777389,95.459,95.382,18.87]
[1773692627055,3.93777389,95.459,95.39,3.85898689]
[1773692627757,1.43777389,95.459,95.391,2.41782335]
[1773692627958,1.43777389,95.459,95.401,2.41782335]
[1773692631961,1.43777389,95.459,95.41,6.41137231]
[1773692632162,33.0,95.515,95.41,6.41137231]
[1773692632163,3.68973878,95.479,95.411,2.55238542]
[1773692632363,3.68973878,95.479,95.431,2.55756817]
[1773692643865,3.86821505,95.499,95.441,2.50623973]
[1773692644066,3.86821505,95.499,95.45,3.86179158]
[1773692656474,3.86821505,95.499,95.441,2.50623973]
[1773692663389,3.86821505,95.499,95.45,3.86179158]
[1773692663590,3.6955508,95.542,95.461,2.59026828]
[1773692663781,3.6955508,95.542,95.49,3.86179158]
[1773692664783,3.6955508,95.542,95.491,2.62498958]
[1773692665085,3.6955508,95.542,95.5,3.86179158]
[1773692667093,3.6955508,95.542,95.491,2.62498958]
[1773692669987,3.6955508,95.553,95.501,2.5754033]
[1773692670192,3.6955508,95.553,95.52,3.86179158]
[1773692670488,3.6955508,95.553,95.512,2.5754033]
[1773692670890,3.6955508,95.553,95.519,2.093]
[1773692671089,3.6955508,95.579,95.52,6.43724022]
[1773692671597,3.6955508,95.579,95.53,3.86179158]
[1773692672300,3.6955508,95.579,95.523,2.093]
[1773692672797,32.98,95.611,95.513,2.093]
[1773692672798,3.6955508,95.569,95.513,2.093]
[1773692673693,3.6955508,95.569,95.522,2.093]
[1773692673896,3.6955508,95.569,95.523,2.4924239]
[1773692674700,3.6955508,95.569,95.511,2.39728431]
[1773692675495,3.6955508,95.569,95.512,2.093]
[1773692675698,3.6955508,95.559,95.512,2.093]
[1773692677597,3.6955508,95.549,95.483,2.34540549]
[1773692678502,3.6955508,95.549,95.491,2.35071547]
[1773692682604,3.6955508,95.539,95.478,2.42717159]
[1773692682805,3.6955508,95.529,95.478,2.42717159]
[1773692684703,3.6955508,95.529,95.465,2.41657086]
[1773692685105,3.6955508,95.519,95.465,2.41657086]
[1773692698521,3.67559291,95.549,95.49,3.86179158]
[1773692698714,3.67559291,95.549,95.491,2.38864406]
[1773692699621,3.67559291,95.539,95.491,2.38864406]
[1773692700709,3.67559291,95.539,95.479,2.37300294]
[1773692701323,3.67559291,95.509,95.457,9.61129016]
[1773692701520,18.836,95.554,95.442,2.37300294]
[1773692701521,3.67559291,95.499,95.442,2.37300294]
[1773692703711,3.67559291,95.499,95.441,9.61129016]
[1773692703712,3.67559291,95.517,95.451,2.35873139]
[1773692704013,3.67559291,95.539,95.481,2.35873139]
[1773692705309,3.85807153,95.53,95.47,3.85807153]
[1773692705511,3.67559291,95.529,95.467,2.36321091]
[1773692707616,3.67559291,95.529,95.471,2.37628672]
[1773692708214,3.67559291,95.529,95.439,18.859]
[1773692708215,3.67559291,95.559,95.5,3.85807153]
[1773692708414,3.67559291,95.559,95.501,2.37628672]
[1773692710623,3.67559291,95.529,95.47,3.85807153]
[1773692711017,3.67559291,95.529,95.47,6.27655396]
[1773692711424,3.67559291,95.529,95.471,2.41848243]
[1773692714234,3.67559291,95.509,95.452,2.27718291]
[1773692715725,3.67559291,95.499,95.44,3.85807153]
[1773692716729,3.67559291,95.499,95.44,6.01503615]
[1773692717125,3.67559291,95.499,95.441,2.15696462]
[1773692717321,3.85807153,95.51,95.451,2.15696462]
[1773692717521,3.67559291,95.514,95.461,2.16431876]
[1773692722732,3.67559291,95.514,95.46,3.85807153]
[1773692722936,3.77726387,95.509,95.451,11.71944305]
[1773692723234,3.77726387,95.509,95.451,2.10815289]
[1773692723737,3.77726387,95.499,95.446,9.61129016]
[1773692724234,3.77726387,95.499,95.454,9.61129016]
[1773692725133,3.77726387,95.499,95.455,9.61129016]
[1773692725536,3.77726387,95.523,95.456,2.06285097]
[1773692725739,3.77726387,95.523,95.471,2.06285097]
[1773692726037,3.77726387,95.519,95.471,2.06285097]
[1773692726937,3.77726387,95.519,95.465,9.61129016]
[1773692727137,3.77726387,95.519,95.466,9.61129016]
[1773692727435,3.77726387,95.519,95.468,2.11957893]
[1773692729136,3.77726387,95.549,95.501,2.11954382]
[1773692734043,3.77726387,95.563,95.501,2.11954382]
[1773692734233,179.02557782,95.605,95.471,12.85652928]
[1773692734234,3.77726387,95.577,95.531,2.21528492]
[1773692734946,3.77726387,95.593,95.531,2.21528492]
[1773692736746,3.77726387,95.579,95.52,3.85807153]
[1773692736940,3.77726387,95.579,95.521,2.20529458]
[1773692739042,3.77726387,95.579,95.51,9.61129016]
[1773692739241,3.77726387,95.579,95.511,2.14261219]
[1773692739546,3.77726387,95.579,95.521,2.14261219]
[1773692740642,3.77726387,95.579,95.52,3.85807153]
[1773692740844,3.77726387,95.579,95.51,3.85807153]
[1773692741042,3.77726387,95.569,95.507,2.20632641]
[1773692741248,3.77726387,95.559,95.507,2.20632641]
[1773692745352,3.77726387,95.559,95.51,3.85807153]
[1773692746050,3.77726387,95.559,95.511,2.22461624]
[1773692750956,3.77726387,95.559,95.505,2.22778355]
[1773692752458,3.77726387,95.573,95.54,3.85807153]
[1773692752657,3.61581261,95.586,95.55,3.85807153]
[1773692752854,3.61581261,95.586,95.488,12.85652928]
[1773692752855,3.61581261,95.586,95.54,6.10609805]
[1773692753657,3.61581261,95.586,95.541,2.25320321]
[1773692757365,3.61581261,95.586,95.55,3.85807153]
[1773692759368,3.61581261,95.586,95.541,2.25320321]
[1773692759863,3.61581261,95.586,95.54,3.85807153]
[1773692760064,3.86419796,95.613,95.57,3.85807153]
[1773692760266,3.86419796,95.613,95.58,3.85807153]
[1773692761068,3.86419796,95.613,95.57,2.39602319]
[1773692761069,3.86419796,95.613,95.57,6.25409472]
[1773692761262,3.86419796,95.613,95.57,2.39602319]
[1773692761659,3.86419796,95.613,95.57,6.25409472]
[1773692762774,3.86419796,95.627,95.58,3.84934437]
[1773692763064,3.86419796,95.627,95.581,2.45509529]
[1773692763469,3.86419796,95.627,95.59,3.84934437]
[1773692764264,3.86419796,95.627,95.581,2.45509529]
[1773692769174,3.86419796,95.658,95.601,2.53351422]
[1773692769873,3.86419796,95.649,95.59,3.84934437]
[1773692770176,3.86419796,95.649,95.586,2.5500024]
[1773692770874,32.96,95.684,95.571,2.5450826]
[1773692770875,3.86419796,95.639,95.571,2.5450826]
[1773692771375,3.86419796,95.639,95.581,2.5450826]
[1773692774778,3.86419796,95.639,95.591,2.63845109]
[1773692775883,3.86419796,95.629,95.571,2.63088038]
[1773692776678,3.86419796,95.644,95.571,2.63088038]
[1773692776883,3.86419796,95.639,95.571,2.63088038]
[1773692777084,3.86419796,95.639,95.581,2.62889076]
[1773692777286,3.86419796,95.649,95.581,2.62889076]
[1773692777486,3.86419796,95.649,95.591,2.62889076]
[1773692778182,32.94,95.68,95.591,2.62889076]
[1773692778183,3.86419796,95.639,95.591,2.62889076]
[1773692782695,3.85778806,95.649,95.591,2.62889076]
[1773692789202,3.85778806,95.639,95.58,3.84934437]
[1773692789804,3.85778806,95.639,95.581,2.40870897]
[1773692795502,3.85778806,95.609,95.565,9.61129016]
[1773692795703,3.85778806,95.589,95.539,9.61129016]
[1773692795909,3.85778806,95.589,95.514,19.21710866]
[1773692795910,3.63592302,95.559,95.5,2.24477621]
[1773692796208,3.63592302,95.559,95.501,3.50959844]
[1773692798203,3.63592302,95.559,95.511,3.50959844]
[1773692798506,3.84934437,95.57,95.511,3.50959844]
[1773692798706,3.71873456,95.573,95.511,3.50959844]
[1773692801112,32.94,95.586,95.511,3.50959844]
[1773692801113,3.6385417,95.569,95.511,3.50959844]
[1773692801307,3.84934437,95.56,95.511,3.50959844]
[1773692802212,3.6385417,95.569,95.511,3.50959844]
[1773692802413,3.84934437,95.56,95.511,3.50959844]
[1773692802609,3.73566128,95.559,95.511,3.50959844]
[1773692803114,3.73566128,95.549,95.491,3.50959844]
[1773692803315,3.73566128,95.539,95.491,3.50959844]
[1773692804013,3.84934437,95.51,95.455,32.96]
[1773692804213,3.84934437,95.51,95.46,3.50959844]
[1773692804515,3.6528489,95.519,95.461,3.50959844]
[1773692804711,3.65030334,95.534,95.471,3.50959844]
[1773692804912,3.65030334,95.549,95.491,3.50959844]
[1773692805309,3.84934437,95.56,95.501,3.50959844]
[1773692805714,3.65896952,95.559,95.501,3.50959844]
[1773692806513,3.84934437,95.54,95.501,3.50959844]
[1773692806718,3.84934437,95.54,95.481,3.50959844]
[1773692808420,3.55801918,95.549,95.49,3.84934437]
[1773692811327,3.55801918,95.549,95.481,3.50959844]
[1773692811724,3.57814352,95.529,95.481,3.50959844]
[1773692812321,3.57814352,95.529,95.471,32.96]
[1773692812523,3.58442942,95.519,95.46,3.84934437]
[1773692812723,3.58442942,95.519,95.453,3.58467466]
[1773692814027,3.58442942,95.519,95.461,3.58467466]
[1773692818125,3.56781426,95.509,95.461,3.58467466]
[1773692820428,3.56781426,95.509,95.45,3.84934437]
[1773692820628,3.84934437,95.5,95.447,3.71922541]
[1773692820830,3.57409074,95.499,95.447,3.71922541]
[1773692823230,3.60743465,95.514,95.461,3.71922541]
[1773692824625,3.60743465,95.514,95.47,3.86072549]
[1773692824833,3.60743465,95.514,95.471,3.71922541]
[1773692828932,3.56323962,95.529,95.471,3.71922541]
[1773692829235,3.56323962,95.519,95.471,3.71922541]
[1773692829835,3.5532423,95.509,95.455,3.71922541]
[1773692832834,3.483625,95.489,95.431,3.71922541]
[1773692833636,3.483625,95.489,95.441,3.71922541]
[1773692836237,3.47357339,95.503,95.451,3.71922541]
[1773692836543,3.47631899,95.539,95.48,3.86072549]
[1773692837432,3.47631899,95.539,95.48,7.5799509]
[1773692837635,3.47631899,95.539,95.481,3.71922541]
[1773692839540,3.47631899,95.539,95.49,3.86072549]
[1773692840532,3.48796132,95.569,95.501,3.71922541]
[1773692841538,3.47820723,95.559,95.501,3.71922541]
[1773692843137,32.98,95.579,95.487,3.52924367]
[1773692843138,3.42163797,95.549,95.487,3.52924367]
[1773692843442,3.42163797,95.549,95.491,3.52924367]
[1773692845836,3.42163797,95.549,95.501,3.52924367]
[1773692849740,3.46763998,95.539,95.472,3.52924367]
[1773692852041,3.46763998,95.539,95.481,3.52924367]
[1773692853443,3.45863267,95.582,95.521,3.52924367]
[1773692853642,3.4523416,95.579,95.51,3.86072549]
[1773692855346,3.4523416,95.579,95.511,3.52924367]
[1773692858550,3.4523416,95.579,95.52,3.86072549]
[1773692859249,3.4523416,95.579,95.52,7.38996916]
[1773692859451,3.4523416,95.579,95.521,3.52924367]
[1773692859958,3.4523416,95.579,95.53,3.86072549]
[1773692860150,3.4523416,95.579,95.531,3.52924367]
[1773692862750,3.4523416,95.579,95.54,3.86072549]
[1773692863550,3.4523416,95.579,95.531,3.52924367]
[1773692865451,3.46912248,95.595,95.541,3.52924367]
[1773692866754,3.47858021,95.589,95.541,3.52924367]
[1773692869150,3.47858021,95.589,95.527,3.52924367]
[1773692869357,3.47867839,95.579,95.527,3.52924367]
[1773692869950,3.47867839,95.579,95.472,19.21710866]
[1773692869951,3.47938149,95.559,95.51,3.52924367]
[1773692870153,3.47938149,95.559,95.447,19.21710866]
[1773692870154,3.47938149,95.549,95.491,3.52924367]
[1773692870352,3.47938149,95.539,95.491,3.52924367]
[1773692871954,3.5632614,95.529,95.483,3.52924367]
[1773692883465,3.48983993,95.548,95.491,3.6610228]
[1773692883665,3.48983993,95.548,95.501,3.6610228]
[1773692884366,3.85815563,95.56,95.501,3.6610228]
[1773692884568,3.85815563,95.56,95.465,32.98]
[1773692884569,7.34711984,95.58,95.521,3.6610228]
[1773692885369,3.48896421,95.579,95.521,3.6610228]
[1773692888864,3.85815563,95.59,95.53,3.85815563]
[1773692889069,3.48343673,95.593,95.531,3.6610228]
[1773692889669,3.48343673,95.593,95.541,3.6610228]
[1773692892267,3.85815563,95.6,95.541,3.6610228]
[1773692892468,3.42605106,95.599,95.541,3.6610228]
[1773692896074,3.43183655,95.579,95.521,3.6610228]
[1773692896277,32.96,95.633,95.521,3.6610228]
[1773692896278,3.43183655,95.569,95.521,3.6610228]
[1773692896474,3.85815563,95.56,95.521,3.6610228]
[1773692898474,3.43183655,95.569,95.521,3.6610228]
[1773692901676,3.85815563,95.57,95.521,3.6610228]
[1773692901874,3.45953855,95.599,95.541,3.6610228]
[1773692905675,3.85815563,95.6,95.541,3.6610228]
[1773692905875,3.85815563,95.61,95.541,3.6610228]
[1773692906075,3.47093844,95.609,95.541,3.6610228]
[1773692906679,3.85815563,95.61,95.541,3.6610228]
[1773692912483,3.85815563,95.6,95.541,3.6610228]
[1773692913585,3.85815563,95.61,95.551,3.61050441]
[1773692914284,3.53216577,95.609,95.551,3.61050441]
[1773692915785,3.85815563,95.6,95.551,3.61050441]